fUSD/lending_fUSD_20240328
["ID","MTS","AMOUNT","RATE_DAILY","PERIOD"]
[320827842,1711587033508,-151.95091952,0.00053413,60]
[320827843,1711587033518,-481.64,0.00053494,2]
[320827844,1711587033527,-151.032809,0.00053579,104]
[320827845,1711587033536,-481.64,0.00053638,2]
[320827846,1711587033545,-151.032809,0.00053679,105]
[320827847,1711587033555,-151.032809,0.00053779,106]
[320827848,1711587033563,-481.64,0.00053783,2]
[320827849,1711587033573,-151.28394325,0.00053785,60]
[320827850,1711587033583,-156.09128763,0.00053817,60]
[320827851,1711587033592,-151.032809,0.00053879,107]
[320827852,1711587033601,-481.64,0.00053927,2]
[320827853,1711587033611,-151.032809,0.00053979,108]
[320827854,1711587033622,-150.0,0.00054,30]
[320827855,1711587033631,-600.0,0.00054,55]
[320827856,1711587033640,-150.0,0.00054,60]
[320827857,1711587033649,-481.64,0.00054071,2]
[320827858,1711587033658,-151.032809,0.00054078,114]
[320827859,1711587033667,-151.032809,0.00054099,110]
[320827860,1711587033677,-157.77838332,0.00054171,60]
[320827861,1711587033686,-151.032809,0.00054178,115]
[320827862,1711587033694,-151.032809,0.00054199,111]
[320827863,1711587033703,-280.595133,0.000542,11]
[320827864,1711587033712,-800.0,0.00054213,30]
[320827865,1711587033721,-481.64,0.00054215,2]
[320827866,1711587033731,-500.0,0.00054233,30]
[320827867,1711587033740,-5000.0,0.00054248,2]
[320827868,1711587033750,-151.032809,0.00054278,116]
[320827869,1711587033759,-151.032809,0.00054299,112]
[320827870,1711587033768,-481.64,0.0005436,2]
[320827871,1711587033777,-151.032809,0.00054378,117]
[320827872,1711587033786,-736.36680533,0.00054387,120]
[320827873,1711587033795,-151.032809,0.00054398,112]
[320827874,1711587033803,-151.032809,0.00054399,113]
[320827875,1711587033813,-650.09,0.000544,8]
[320827876,1711587033822,-650.09,0.000544,8]
[320827877,1711587033831,-650.09,0.000544,8]
[320827878,1711587033840,-650.09,0.000544,8]
[320827879,1711587033849,-650.09,0.000544,8]
[320827880,1711587033859,-650.09,0.000544,8]
[320827881,1711587033869,-650.09,0.000544,8]
[320827882,1711587033878,-650.09,0.000544,8]
[320827883,1711587033888,-650.09,0.000544,8]
[320827884,1711587033897,-650.09,0.000544,8]
[320827885,1711587033906,-650.09,0.000544,8]
[320827886,1711587033916,-650.09,0.000544,8]
[320827887,1711587033925,-650.09,0.000544,8]
[320827888,1711587033934,-650.09,0.000544,8]
[320827889,1711587033943,-650.09,0.000544,8]
[320827890,1711587033952,-650.09,0.000544,8]
[320827891,1711587033962,-650.09,0.000544,8]
[320827892,1711587033976,-650.09,0.000544,8]
[320827893,1711587033996,-650.09,0.000544,8]
[320827894,1711587034012,-650.09,0.000544,8]
[320827895,1711587034029,-7931.42899598,0.000544,2]
[320827896,1711587034048,-152.58,0.000544,8]
[320827897,1711587034062,-152.58,0.000544,8]
[320827898,1711587034079,-188.93050764,0.00054404,14]
[320827899,1711587034095,-5727.26,0.00054404,120]
[320827900,1711587034112,-500.0,0.00054404,2]
[320827901,1711587034128,-308.84754724,0.00054404,2]
[320827902,1711587034145,-46710.6089,0.00054405,2]
[320827903,1711587034160,-7500.0,0.00054405,3]
[320827904,1711587034176,-191.66874509,0.00054405,2]
[320827905,1711587034193,-157.77838332,0.00054437,60]
[320827906,1711587034212,-151.032809,0.00054478,118]
[320827907,1711587034227,-150.59,0.00054494,120]
[320827908,1711587034242,-150.59,0.00054494,120]
[320827909,1711587034257,-655.08,0.00054494,2]
[320827910,1711587034275,-183.20085839,0.00054494,2]
[320827911,1711587034287,-151.032809,0.00054499,114]
[320827912,1711587034299,-150.0,0.000545,30]
[320827913,1711587034313,-150.0,0.000545,120]
[320827914,1711587034329,-934.56,0.00054503,120]
[320827915,1711587034344,-1050.61,0.00054503,120]
[320827916,1711587034357,-1886.23,0.00054503,120]
[320827917,1711587034372,-544.21,0.00054503,120]
[320827918,1711587034385,-3022.77,0.00054503,120]
[320827919,1711587034398,-1647.85,0.00054503,120]
[320827920,1711587034411,-2150.13,0.00054503,120]
[320827921,1711587034424,-1643.93,0.00054503,120]
[320827922,1711587034437,-5727.26,0.00054503,120]
[320827923,1711587034450,-1021.3,0.00054503,120]
[320827924,1711587034464,-1353.2,0.00054503,120]
[320827925,1711587034478,-1722.42,0.00054503,120]
[320827926,1711587034491,-500.0,0.00054503,120]
[320827927,1711587034505,-2499.18,0.00054503,120]
[320827928,1711587034518,-1994.38,0.00054503,120]
[320827929,1711587034531,-1301.34,0.00054503,120]
[320827930,1711587034545,-792.4,0.00054503,120]
[320827931,1711587034559,-1122.14,0.00054503,120]
[320827932,1711587034573,-837.86,0.00054503,120]
[320827933,1711587034587,-1742.36,0.00054503,120]
[320827934,1711587034600,-503.98,0.00054503,120]
[320827935,1711587034615,-500.91210151,0.00054503,2]
[320827936,1711587034629,-1091.87,0.00054503,120]
[320827937,1711587034642,-1048.32,0.00054503,120]
[320827938,1711587034656,-2737.57,0.00054503,120]
[320827939,1711587034669,-788.79,0.00054503,120]
[320827940,1711587034684,-2737.57,0.00054503,120]
[320827941,1711587034698,-2001.19,0.00054503,120]
[320827942,1711587034712,-910.02,0.00054503,120]
[320827943,1711587034726,-925.44,0.00054503,120]
[320827944,1711587034738,-500.0,0.00054503,120]
[320827945,1711587034754,-867.15561493,0.00054504,10]
[320827946,1711587034768,-155.0,0.00054504,4]
[320827947,1711587034782,-3846.71319902,0.00054504,30]
[320827948,1711587034796,-500.0,0.00054504,120]
[320827949,1711587034809,-510.2247128,0.00054504,120]
[320827950,1711587034822,-1371.85,0.00054504,120]
[320827951,1711587034836,-587.52,0.00054504,120]
[320827952,1711587034851,-589.67,0.00054504,120]
[320827953,1711587034866,-500.0,0.00054504,120]
[320827954,1711587034880,-1560.29,0.00054504,120]
[320827955,1711587034895,-500.0,0.00054504,120]
[320827956,1711587034911,-853.0,0.00054504,120]
[320827957,1711587034925,-500.0,0.00054504,120]
[320827958,1711587034941,-500.0,0.00054504,120]
[320827959,1711587034956,-1341.49,0.00054504,120]
[320827960,1711587034971,-500.0,0.00054504,120]
[320827961,1711587034986,-535.45993,0.00054504,120]
[320827962,1711587035001,-500.0,0.00054504,120]
[320827963,1711587035017,-721.33,0.00054504,120]
[320827964,1711587035031,-500.0,0.00054504,120]
[320827965,1711587035041,-500.0,0.00054504,120]
[320827966,1711587035051,-500.0,0.00054504,120]
[320827967,1711587035061,-500.0,0.00054504,120]
[320827968,1711587035070,-536.63,0.00054504,120]
[320827969,1711587035080,-649.76,0.00054504,120]
[320827970,1711587035091,-500.0,0.00054504,120]
[320827971,1711587035101,-500.0,0.00054504,120]
[320827972,1711587035110,-692.25,0.00054504,120]
[320827973,1711587035351,-500.0,0.00054504,120]
[320827974,1711587035384,-500.0,0.00054504,120]
[320827975,1711587035396,-697.21,0.00054504,120]
[320827976,1711587035406,-580.77,0.00054504,120]
[320827977,1711587035416,-1085.19,0.00054504,120]
[320827978,1711587035425,-761.91,0.00054504,120]
[320827979,1711587035435,-500.0,0.00054504,120]
[320827980,1711587035444,-1305.81,0.00054504,120]
[320827981,1711587035454,-636.21,0.00054504,120]
[320827982,1711587035465,-500.0,0.00054504,120]
[320827983,1711587035475,-500.0,0.00054504,120]
[320827984,1711587035485,-500.0,0.00054504,120]
[320827985,1711587035494,-528.96,0.00054504,30]
[320827986,1711587035503,-576.51,0.00054504,120]
[320827987,1711587035512,-500.0,0.00054504,120]
[320827988,1711587035522,-500.0,0.00054504,120]
[320827989,1711587035531,-500.0,0.00054504,120]
[320827990,1711587035541,-814.6,0.00054504,120]
[320827991,1711587035550,-1791.05,0.00054504,120]
[320827992,1711587035559,-1043.81,0.00054504,120]
[320827993,1711587035569,-701.7,0.00054504,120]
[320827994,1711587035578,-500.0,0.00054504,120]
[320827995,1711587035587,-500.0,0.00054504,120]
[320827996,1711587035596,-286.76,0.00054504,120]
[320827997,1711587035605,-500.0,0.00054504,120]
[320827998,1711587035617,-616.63,0.00054504,120]
[320827999,1711587035627,-1250.69,0.00054504,120]
[320828000,1711587035636,-500.0,0.00054504,120]
[320828001,1711587035646,-500.0,0.00054504,120]
[320828002,1711587035656,-271.26343463,0.00054504,120]
[320828003,1711587035665,-500.0,0.00054504,120]
[320828004,1711587035675,-802.69,0.00054504,120]
[320828005,1711587035685,-500.0,0.00054504,120]
[320828006,1711587035694,-593.87,0.00054504,120]
[320828007,1711587035703,-500.0,0.00054504,120]
[320828008,1711587035715,-500.0,0.00054504,120]
[320828009,1711587035724,-500.0,0.00054504,120]
[320828010,1711587035734,-652.49,0.00054504,120]
[320828011,1711587035743,-511.61,0.00054504,120]
[320828012,1711587035753,-500.0,0.00054504,120]
[320828013,1711587035762,-500.0,0.00054504,120]
[320828014,1711587035775,-500.0,0.00054504,120]
[320828015,1711587035785,-500.0,0.00054504,120]
[320828016,1711587035795,-500.0,0.00054504,120]
[320828017,1711587035804,-500.0,0.00054504,120]
[320828018,1711587035814,-1223.05,0.00054504,120]
[320828019,1711587035823,-500.0,0.00054504,120]
[320828020,1711587035833,-500.0,0.00054504,120]
[320828021,1711587035842,-505.38522604,0.00054504,120]
[320828022,1711587035851,-500.0,0.00054504,120]
[320828023,1711587035861,-358.86068452,0.00054504,5]
[320828024,1711587035872,-500.0,0.00054504,120]
[320828025,1711587035881,-500.0,0.00054504,120]
[320828026,1711587035891,-500.0,0.00054504,120]
[320828027,1711587035900,-500.0,0.00054504,120]
[320828028,1711587035910,-500.0,0.00054504,120]
[320828029,1711587035920,-500.0,0.00054504,120]
[320828030,1711587035929,-545.64339023,0.00054504,120]
[320828031,1711587035939,-500.0,0.00054504,120]
[320828032,1711587035950,-500.0,0.00054504,120]
[320828033,1711587035959,-500.0,0.00054504,120]
[320828034,1711587035969,-500.0,0.00054504,120]
[320828035,1711587035979,-500.0,0.00054504,120]
[320828036,1711587035989,-500.0,0.00054504,120]
[320828037,1711587035999,-500.0,0.00054504,120]
[320828038,1711587036009,-500.0,0.00054504,120]
[320828039,1711587036019,-500.0,0.00054504,120]
[320828040,1711587036028,-500.0,0.00054504,120]
[320828041,1711587036038,-500.0,0.00054504,120]
[320828042,1711587036052,-188.05930993,0.00054504,120]
[320828043,1711587036061,-500.0,0.00054504,120]
[320828044,1711587036071,-500.0,0.00054504,120]
[320828045,1711587036080,-500.0,0.00054504,120]
[320828046,1711587036090,-502.06212158,0.00054504,120]
[320828047,1711587036100,-500.0,0.00054504,120]
[320828048,1711587036110,-500.0,0.00054504,120]
[320828049,1711587036121,-500.0,0.00054504,120]
[320828050,1711587036130,-500.0,0.00054504,120]
[320828051,1711587036140,-500.0,0.00054504,120]
[320828052,1711587036149,-500.0,0.00054504,120]
[320828053,1711587036159,-500.0,0.00054504,120]
[320828054,1711587036169,-500.0,0.00054504,120]
[320828055,1711587036179,-500.0,0.00054504,120]
[320828056,1711587036188,-500.0,0.00054504,120]
[320828057,1711587036199,-550.33,0.00054504,120]
[320828058,1711587036209,-520.88386836,0.00054504,120]
[320828059,1711587036218,-500.0,0.00054504,120]
[320828060,1711587036229,-500.0,0.00054504,120]
[320828061,1711587036241,-500.0,0.00054504,120]
[320828062,1711587036251,-981.72,0.00054504,120]
[320828063,1711587036260,-500.0,0.00054504,120]
[320828064,1711587036271,-500.0,0.00054504,120]
[320828065,1711587036280,-500.0,0.00054504,120]
[320828066,1711587036291,-654.05,0.00054504,120]
[320828067,1711587036301,-500.0,0.00054504,120]
[320828068,1711587036312,-500.0,0.00054504,120]
[320828069,1711587036323,-502.93580922,0.00054504,120]
[320828070,1711587036332,-500.0,0.00054504,120]
[320828071,1711587036344,-500.0,0.00054504,120]
[320828072,1711587036353,-500.0,0.00054504,120]
[320828073,1711587036363,-500.0,0.00054504,120]
[320828074,1711587036374,-500.0,0.00054504,120]
[320828075,1711587036383,-500.0,0.00054504,120]
[320828076,1711587036393,-500.0,0.00054504,120]
[320828077,1711587036402,-500.0,0.00054504,120]
[320828078,1711587036412,-588.41,0.00054504,120]
[320828079,1711587036422,-500.0,0.00054504,120]
[320828080,1711587036432,-500.0,0.00054504,120]
[320828081,1711587036441,-699.15,0.00054504,120]
[320828082,1711587036451,-506.27516369,0.00054504,120]
[320828083,1711587036461,-500.0,0.00054504,120]
[320828084,1711587036471,-500.0,0.00054504,120]
[320828085,1711587036481,-500.0,0.00054504,120]
[320828086,1711587036491,-500.0,0.00054504,120]
[320828087,1711587036500,-500.0,0.00054504,120]
[320828088,1711587036510,-1139.22,0.00054504,120]
[320828089,1711587036520,-500.0,0.00054504,120]
[320828090,1711587036529,-500.0,0.00054504,120]
[320828091,1711587036538,-500.0,0.00054504,120]
[320828092,1711587036548,-500.0,0.00054504,120]
[320828093,1711587036557,-500.0,0.00054504,120]
[320828094,1711587036566,-500.0,0.00054504,120]
[320828095,1711587036575,-1573.89,0.00054504,120]
[320828096,1711587036585,-500.0,0.00054504,120]
[320828097,1711587036594,-500.0,0.00054504,120]
[320828098,1711587036603,-500.0,0.00054504,120]
[320828099,1711587036613,-500.0,0.00054504,120]
[320828100,1711587036624,-500.0,0.00054504,120]
[320828101,1711587036633,-500.0,0.00054504,120]
[320828102,1711587036642,-246.46,0.00054504,120]
[320828103,1711587036652,-500.0,0.00054504,120]
[320828104,1711587036661,-651.21,0.00054504,120]
[320828105,1711587036671,-501.14168265,0.00054504,120]
[320828106,1711587036681,-500.0,0.00054504,120]
[320828107,1711587036690,-500.0,0.00054504,120]
[320828108,1711587036699,-500.0,0.00054504,120]
[320828109,1711587036710,-834.33,0.00054504,120]
[320828110,1711587036719,-992.92,0.00054504,120]
[320828111,1711587036729,-500.0,0.00054504,120]
[320828112,1711587036739,-500.0,0.00054504,120]
[320828113,1711587036748,-500.0,0.00054504,120]
[320828114,1711587036757,-943.41,0.00054504,120]
[320828115,1711587036767,-502.47513591,0.00054504,120]
[320828116,1711587036776,-859.08,0.00054504,120]
[320828117,1711587036786,-500.0,0.00054504,120]
[320828118,1711587036795,-500.0,0.00054504,120]
[320828119,1711587036805,-505.94703657,0.00054504,120]
[320828120,1711587036817,-542.25319022,0.00054504,120]
[320828121,1711587036826,-1847.03,0.00054504,120]
[320828122,1711587036835,-499.85141206,0.00054504,120]
[320828123,1711587036845,-500.0,0.00054504,120]
[320828124,1711587036865,-500.0,0.00054504,120]
[320828125,1711587036876,-5054.6,0.00054504,120]
[320828126,1711587036887,-500.0,0.00054504,120]
[320828127,1711587036897,-500.0,0.00054504,120]
[320828128,1711587036907,-932.23,0.00054504,120]
[320828129,1711587036917,-500.0,0.00054504,120]
[320828130,1711587036927,-500.0,0.00054504,120]
[320828131,1711587036938,-311.81559997,0.00054504,120]
[320828132,1711587036948,-1787.83,0.00054504,120]
[320828133,1711587036958,-812.07,0.00054504,120]
[320828134,1711587036968,-513.10411611,0.00054504,120]
[320828135,1711587036978,-500.0,0.00054504,120]
[320828136,1711587036988,-500.0,0.00054504,120]
[320828137,1711587036998,-500.0,0.00054504,120]
[320828138,1711587037008,-500.0,0.00054504,120]
[320828139,1711587037018,-1917.22,0.00054504,120]
[320828140,1711587037027,-500.0,0.00054504,120]
[320828141,1711587037037,-500.0,0.00054504,120]
[320828142,1711587037047,-783.16,0.00054504,120]
[320828143,1711587037057,-507.30642676,0.00054504,120]
[320828144,1711587037066,-500.0,0.00054504,120]
[320828145,1711587037076,-500.0,0.00054504,120]
[320828146,1711587037086,-500.0,0.00054504,120]
[320828147,1711587037095,-500.0,0.00054504,120]
[320828148,1711587037105,-500.0,0.00054504,120]
[320828149,1711587037115,-500.0,0.00054504,120]
[320828150,1711587037125,-500.0,0.00054504,120]
[320828151,1711587037135,-2467.88,0.00054504,120]
[320828152,1711587037145,-500.0,0.00054504,120]
[320828153,1711587037155,-500.0,0.00054504,120]
[320828154,1711587037165,-151.0,0.00054504,120]
[320828155,1711587037174,-777.6,0.00054504,120]
[320828156,1711587037184,-500.0,0.00054504,120]
[320828157,1711587037194,-506.41426,0.00054504,120]
[320828158,1711587037204,-768.02,0.00054504,120]
[320828159,1711587037214,-1594.71,0.00054504,120]
[320828160,1711587037228,-1888.71,0.00054504,120]
[320828161,1711587037238,-1126.29,0.00054504,120]
[320828162,1711587037247,-500.0,0.00054504,120]
[320828163,1711587037257,-500.0,0.00054504,120]
[320828164,1711587037268,-500.0,0.00054504,120]
[320828165,1711587037278,-500.0,0.00054504,120]
[320828166,1711587037287,-500.0,0.00054504,120]
[320828167,1711587037297,-500.0,0.00054504,120]
[320828168,1711587037306,-500.0,0.00054504,120]
[320828169,1711587037317,-505.05003423,0.00054504,120]
[320828170,1711587037326,-500.0,0.00054504,120]
[320828171,1711587037336,-500.0,0.00054504,120]
[320828172,1711587037346,-500.0,0.00054504,120]
[320828173,1711587037355,-509.51,0.00054504,120]
[320828174,1711587037365,-2807.54,0.00054504,120]
[320828175,1711587037377,-1077.73,0.00054504,120]
[320828176,1711587037386,-500.0,0.00054504,120]
[320828177,1711587037395,-563.21,0.00054504,120]
[320828178,1711587037405,-500.0,0.00054504,120]
[320828179,1711587037414,-500.0,0.00054504,120]
[320828180,1711587037424,-651.39,0.00054504,120]
[320828181,1711587037434,-151.0,0.00054504,120]
[320828182,1711587037443,-500.0,0.00054504,120]
[320828183,1711587037453,-500.0,0.00054504,120]
[320828184,1711587037462,-500.0,0.00054504,120]
[320828185,1711587037472,-420.00674818,0.00054504,7]
[320828186,1711587037481,-1253.79,0.00054504,120]
[320828187,1711587037491,-1737.44,0.00054504,120]
[320828188,1711587037501,-663.8,0.00054504,120]
[320828189,1711587037510,-505.2678033,0.00054504,120]
[320828190,1711587037519,-500.0,0.00054504,120]
[320828191,1711587037529,-151.0,0.00054504,120]
[320828192,1711587037538,-607.04923502,0.00054504,120]
[320828193,1711587037547,-500.0,0.00054504,120]
[320828194,1711587037557,-500.0,0.00054504,120]
[320828195,1711587037569,-500.0,0.00054504,120]
[320828196,1711587037579,-500.0,0.00054504,120]
[320828197,1711587037588,-151.0,0.00054504,120]
[320828198,1711587037598,-500.0,0.00054504,120]
[320828199,1711587037607,-500.0,0.00054504,120]
[320828200,1711587037617,-500.0,0.00054504,120]
[320828201,1711587037627,-1173.79,0.00054504,120]
[320828202,1711587037637,-154.07,0.00054504,120]
[320828203,1711587037647,-610.47,0.00054504,120]
[320828204,1711587037656,-1421.97,0.00054504,120]
[320828205,1711587037666,-500.0,0.00054504,7]
[320828206,1711587037675,-500.0,0.00054504,120]
[320828207,1711587037685,-500.0,0.00054504,120]
[320828208,1711587037695,-500.0,0.00054504,120]
[320828209,1711587037704,-500.0,0.00054504,120]
[320828210,1711587037714,-709.62,0.00054504,120]
[320828212,1711587037723,-2725.67329429,0.00054504,120]
[320828214,1711587037732,-611.47,0.00054504,120]
[320828216,1711587037742,-9151.62,0.00054504,120]
[320828217,1711587037751,-500.0,0.00054504,120]
[320828219,1711587037761,-151.0,0.00054504,120]
[320828221,1711587037771,-219.75246915,0.00054504,120]
[320828222,1711587037781,-500.0,0.00054504,120]
[320828223,1711587037791,-501.35099002,0.00054504,120]
[320828224,1711587037800,-500.0,0.00054504,120]
[320828225,1711587037810,-153.979257,0.00054504,120]
[320828226,1711587037820,-500.0,0.00054504,120]
[320828227,1711587037830,-500.0,0.00054504,120]
[320828228,1711587037840,-500.0,0.00054504,30]
[320828229,1711587037849,-328.42004765,0.00054504,120]
[320828230,1711587037859,-669.58,0.00054504,120]
[320828231,1711587037870,-2414.59,0.00054504,120]
[320828232,1711587037879,-151.0,0.00054504,30]
[320828233,1711587037889,-500.0,0.00054504,65]
[320828234,1711587037898,-500.0,0.00054504,120]
[320828235,1711587037907,-658.66,0.00054504,120]
[320828236,1711587037917,-409.3476318,0.00054504,120]
[320828237,1711587037927,-546.42,0.00054504,120]
[320828238,1711587037936,-500.0,0.00054504,120]
[320828239,1711587037946,-532.76,0.00054504,120]
[320828240,1711587037955,-500.0,0.00054504,120]
[320828241,1711587037965,-3480.22,0.00054504,120]
[320828242,1711587037974,-500.0,0.00054504,120]
[320828243,1711587037983,-503.89959253,0.00054504,120]
[320828244,1711587037992,-1248.49,0.00054504,120]
[320828245,1711587038001,-633.62,0.00054504,120]
[320828246,1711587038010,-862.3,0.00054504,120]
[320828247,1711587038020,-1250.13,0.00054504,120]
[320828248,1711587038029,-500.0,0.00054504,120]
[320828249,1711587038039,-500.0,0.00054504,120]
[320828250,1711587038049,-623.586443,0.00054504,120]
[320828251,1711587038058,-500.0,0.00054504,120]
[320828252,1711587038068,-1413.79,0.00054504,120]
[320828253,1711587038077,-1823.01,0.00054504,21]
[320828254,1711587038087,-500.0,0.00054504,120]
[320828255,1711587038096,-873.0,0.00054504,120]
[320828256,1711587038105,-500.0,0.00054504,120]
[320828259,1711587038275,-623.586443,0.00054504,120]
[320828262,1711587038294,-706.67,0.00054504,120]
[320828264,1711587038304,-255.8679062,0.00054504,120]
[320828266,1711587038316,-151.0,0.00054504,120]
[320828268,1711587038327,-1733.29,0.00054504,120]
[320828271,1711587038337,-500.0,0.00054504,120]
[320828274,1711587038346,-151.0,0.00054504,120]
[320828276,1711587038356,-151.0,0.00054504,120]
[320828278,1711587038365,-2209.69,0.00054504,120]
[320828280,1711587038378,-500.0,0.00054504,120]
[320828282,1711587038388,-500.0,0.00054504,120]
[320828284,1711587038398,-1675.87,0.00054504,120]
[320828286,1711587038409,-500.0,0.00054504,2]
[320828288,1711587038420,-500.0,0.00054504,120]
[320828290,1711587038430,-500.0,0.00054504,120]
[320828292,1711587038440,-500.0,0.00054504,120]
[320828294,1711587038449,-151.0,0.00054504,120]
[320828297,1711587038460,-1882.74,0.00054504,120]
[320828298,1711587038470,-500.0,0.00054504,120]
[320828300,1711587038480,-1270.08,0.00054504,120]
[320828302,1711587038490,-500.0,0.00054504,120]
[320828305,1711587038500,-5727.26,0.00054504,120]
[320828307,1711587038510,-1363.78,0.00054504,120]
[320828308,1711587038520,-151.0,0.00054504,120]
[320828310,1711587038531,-641.45600516,0.00054504,120]
[320828312,1711587038540,-7816.56,0.00054504,120]
[320828314,1711587038550,-500.0,0.00054504,120]
[320828317,1711587038560,-943.07,0.00054504,120]
[320828319,1711587038569,-2363.32,0.00054504,120]
[320828321,1711587038579,-632.90281533,0.00054504,120]
[320828322,1711587038588,-151.0,0.00054504,7]
[320828325,1711587038598,-656.51,0.00054504,120]
[320828327,1711587038608,-800.2,0.00054504,120]
[320828328,1711587038617,-500.0,0.00054504,120]
[320828331,1711587038633,-1048.26186696,0.00054504,120]
[320828345,1711587038766,-705.46813304,0.00054504,120]
[320828347,1711587038775,-1556.82,0.00054504,120]
[320828350,1711587038785,-500.0,0.00054504,120]
[320828352,1711587038794,-500.0,0.00054504,120]
[320828354,1711587038803,-500.0,0.00054504,120]
[320828356,1711587038814,-151.0,0.00054504,120]
[320828358,1711587038823,-703.07026675,0.00054504,120]
[320828361,1711587038849,-823.64973325,0.00054504,120]
[320828363,1711587038859,-500.0,0.00054504,120]
[320828365,1711587038868,-151.0,0.00054504,120]
[320828367,1711587038880,-500.0,0.00054504,120]
[320828369,1711587038889,-500.0,0.00054504,120]
[320828371,1711587038898,-1469.61,0.00054504,120]
[320828373,1711587038908,-1590.03,0.00054504,120]
[320828375,1711587038917,-500.0,0.00054504,120]
[320828377,1711587038926,-508.50986051,0.00054504,120]
[320828379,1711587038936,-151.0,0.00054504,120]
[320828381,1711587038945,-283.97575834,0.00054504,120]
[320828416,1711587040436,-241.143,0.00048103,2]
[320828418,1711587040446,-202.677,0.00054502,2]
[320828420,1711587040462,-12.6331922,0.00054502,2]
[320828422,1711587040471,-222.05458972,0.00054504,120]
[320828424,1711587040481,-500.0,0.00054504,120]
[320828426,1711587040491,-500.0,0.00054504,120]
[320828427,1711587040501,-1164.87,0.00054504,120]
[320828428,1711587040668,-662.56,0.00054504,120]
[320828429,1711587040678,-500.0,0.00054504,120]
[320828430,1711587040687,-500.0,0.00054504,120]
[320828431,1711587040697,-1127.15,0.00054504,120]
[320828432,1711587040707,-500.0,0.00054504,120]
[320828433,1711587040716,-500.0,0.00054504,120]
[320828434,1711587040725,-500.0,0.00054504,120]
[320828435,1711587040735,-2399.65,0.00054504,120]
[320828436,1711587040744,-500.0,0.00054504,120]
[320828437,1711587040753,-199.042882,0.00054504,120]
[320828438,1711587040763,-500.0,0.00054504,120]
[320828439,1711587040772,-500.0,0.00054504,120]
[320828440,1711587040781,-500.0,0.00054504,120]
[320828441,1711587040791,-500.0,0.00054504,120]
[320828442,1711587040800,-500.0,0.00054504,120]
[320828443,1711587040810,-500.0,0.00054504,120]
[320828444,1711587040819,-1461.56,0.00054504,120]
[320828445,1711587040828,-500.0,0.00054504,120]
[320828446,1711587040837,-500.0,0.00054504,120]
[320828447,1711587040847,-650.04,0.00054504,120]
[320828448,1711587040856,-500.0,0.00054504,120]
[320828449,1711587040865,-793.55,0.00054504,120]
[320828450,1711587040874,-2111.59,0.00054504,120]
[320828451,1711587040884,-500.0,0.00054504,120]
[320828452,1711587040894,-500.0,0.00054504,120]
[320828453,1711587040903,-505.26300311,0.00054504,120]
[320828454,1711587040913,-500.0,0.00054504,120]
[320828455,1711587040922,-1720.11,0.00054504,120]
[320828456,1711587040931,-1067.55,0.00054504,120]
[320828457,1711587040941,-500.0,0.00054504,2]